Cogmind - Beta 9.4 @@@ ROGUE MODE // 2020.01.10 @ 12:24:29 // Winter2019/RPGLIKE Player: I'llBeBack Result: Self-destructed Performance ------------- Evolutions (1) 500 Regions Visited (2) 400 Robots Destroyed (12) 60 Value Destroyed (253) 253 Prototype IDs (0) 0 Alien Tech Used (0) 0 Bonus (0) 0 TOTAL SCORE: 1213 Bonus ------- None Cogmind --------- Core Integrity 217/600 Matter 2/300 Energy 250/250 System Corruption 0% Temperature Cool (27) Movement Walking (120) Location -9/Materials Parts ------- > --- POWER (1) -------- Ion Engine > --- PROPULSION (2) --- Aluminum Leg Aluminum Leg > --- UTILITY (4) ------ Visual Processing Unit Improved Terrain Scanner Armor Integrity Analyzer Hardened Light Armor Plating > --- WEAPON (2) ------- Assault Rifle Autogun > --- INVENTORY (2) ---- Grenade Launcher Maul Peak State ------------ > --- POWER ------------ Ion Engine > --- PROPULSION ------- Aluminum Leg Aluminum Leg > --- UTILITY ---------- Visual Processing Unit Improved Terrain Scanner Armor Integrity Analyzer Hardened Light Armor Plating > --- WEAPON ----------- Assault Rifle Autogun > --- INVENTORY -------- Grenade Launcher Maul [Rating: 14] Favorites ----------- Power Ion Engine Engine Ion Engine Propulsion Aluminum Leg Leg Aluminum Leg Utility Improved Terrain Scanner Device Improved Terrain Scanner Processor Seismic Analyzer Protection Hardened Light Armor Plating Weapon Assault Rifle Energy Gun Medium Laser Ballistic Gun Assault Rifle Launcher Grenade Launcher Impact Weapon Maul Build | -11 -10 -9 ------- Run | Scr Mat Mat Slots Evolved 5 | 4 . 1 Power . | . . . Propulsion 1 | 1 . . Utility 3 | 2 . 1 Weapon 1 | 1 . . Parts Attached 19 | 7 5 7 Power 1 | 1 . . Engine 1 | 1 . . Core . | . . . Reactor . | . . . Propulsion 2 | 2 . . Treads . | . . . Leg 2 | 2 . . Wheel . | . . . Hover . | . . . Flight . | . . . Utility 6 | 2 1 3 Device 2 | 1 1 . Storage . | . . . Processor 3 | 1 . 2 Hackware . | . . . Protection 1 | . . 1 Artifact . | . . . Weapon 10 | 2 4 4 Energy Gun 1 | 1 . . Energy Cannon . | . . . Ballistic Gun 6 | 1 3 2 Ballistic Cannon . | . . . Launcher 2 | . 1 1 Special Weapon . | . . . Impact Weapon 1 | . . 1 Slashing Weapon . | . . . Piercing Weapon . | . . . Special Melee Weapon . | . . . Unidentified Prototypes . | . . . Parts Lost . | . . . Power . | . . . Propulsion . | . . . Utility . | . . . Weapon . | . . . Highest Loss Streak . | . . . Average Slot Usage (%) 95 | . 90 99 Engine 11 | . 12 11 Leg 24 | . 25 23 Device 15 | . 15 14 Processor 16 | . 12 19 Protection 3 | . . 5 Ballistic Gun 23 | . 23 22 Naked Turns . | . . . Heaviest Build 16 | 10 12 16 Greatest Support 20 | 20 20 20 Greatest Overweight (x) 1 | 1 . . Average Overweight (x) . | . . . Largest Inventory Capacity 2 | 1 1 2 Average Capacity 1 | . 1 1 Most Carried 2 | 1 1 2 Average Carried 1 | . . 1 Final Capacity 2 | 1 1 2 Final Carried 2 | 1 1 2 Class Distribution -------------------- 100% | Mutant Dominant Class ---------------- Mutant | -10/Materials Mutant | -9/Materials Resources | -11 -10 -9 ----------- Run | Scr Mat Mat Matter Collected 379 | 291 27 61 Remotely . | . . . Salvage Created 262 | 30 34 198 Parts 19 | 3 6 10 Haulers Intercepted . | . . . Recyclers Shooed . | . . . Parts Field Recycled . | . . . Retrieved Matter . | . . . Parts Self-Destructed . | . . . Prevented . | . . . Kills | -11 -10 -9 ------- Run | Scr Mat Mat Combat Hostiles Destroyed 8 | . 5 3 Guns 2 | . 2 . AOE 6 | . 3 3 Classes Destroyed 7 | 1 2 4 Worker 1 | . . 1 Tunneler 1 | 1 . . Recycler 1 | . . 1 Watcher 1 | . . 1 Swarmer 3 | . 3 . Grunt 4 | . 2 2 Duelist 1 | . . 1 Best Kill Streak 4 | 1 4 4 Combat Bots Only 4 | . 4 3 Max Kills in Single Turn 3 | 1 1 3 Gunslinging . | . . . Exploded 2 | . 1 2 Melee . | . . . Uniques/NPCs Destroyed . | . . . Combat | -11 -10 -9 -------- Run | Scr Mat Mat Damage Taken 635 | . 390 245 Core 479 | . 304 175 Absorbed by Shields . | . . . Redirected to Core 416 | . 252 164 Core Remaining (%) 82 | 100 65 . Volleys Fired 44 | 7 19 18 Largest 2 | 2 2 2 Hottest 70 | 70 40 43 Shots Fired 81 | 14 33 34 Gun 74 | 14 28 32 Cannon . | . . . Launcher 7 | . 5 2 Special . | . . . Kinetic 67 | 7 28 32 Thermal 7 | 7 . . Explosive 7 | . 5 2 Electromagnetic . | . . . Robot Hit Streak 5 | 2 5 3 Robot Miss Streak 5 | 2 4 5 Penetration Max . | . . . Secondary Targets . | . . . Shots Hit Robots 38 | 7 17 14 Core Hits 19 | 1 8 10 Critical Hits 1 | . 1 . Critical Kills . | . . . Critical Parts Destroyed 1 | . 1 . Melee Attacks . | . . . Impact . | . . . Slashing . | . . . Piercing . | . . . Sneak Attacks . | . . . Combat Hostiles . | . . . Follow-up Attacks . | . . . Damage Inflicted 857 | 66 505 286 Guns 390 | 66 185 139 Cannons . | . . . Explosions 467 | . 320 147 Melee . | . . . Ramming . | . . . Kinetic 366 | 42 185 139 Thermal 24 | 24 . . Explosive 467 | . 320 147 Electromagnetic . | . . . Impact . | . . . Slashing . | . . . Piercing . | . . . Highest Corruption . | . . . Average Corruption . | . . . Corruption Purged . | . . . Overload Shots . | . . . Overflow Damage 67 | . 67 . Projectiles . | . . . Explosions 67 | . 67 . Melee . | . . . Knockbacks . | . . . Impact . | . . . Kinetic . | . . . Secondary . | . . . Self-Inflicted Damage 15 | . 15 . Shots 1 | . 1 . Rammed . | . . . Targets Rammed . | . . . Kicked . | . . . Crushed . | . . . Highest Temperature 45 | 45 . 33 Average Temperature 11 | 18 . 5 Received Heat Transfer 195 | . 78 117 Siege Activations . | . . . Robots Corrupted . | . . . Combat Hostiles . | . . . Parts Fried . | . . . Impact Corruptions . | . . . Robots Melted . | . . . Combat Hostiles . | . . . Parts Melted . | . . . Heat Transferred 74 | 74 . . Parts Sabotaged . | . . . Parts Stolen . | . . . Parts Stripped . | . . . Power Chain Reactions . | . . . Missiles Intercepted . | . . . Alert | -11 -10 -9 ------- Run | Scr Mat Mat Peak Influence 202 | 5 132 202 Average Influence 75 | 2 27 133 Maximum Alert Level 1 | . . 1 Low Security (%) 81 | 100 100 62 Level 1 18 | . . 37 Level 2 . | . . . Level 3 . | . . . Level 4 . | . . . Level 5 . | . . . High Security . | . . . Max Security . | . . . Squads Dispatched 1 | . . 1 Investigation 1 | . . 1 Extermination . | . . . Reinforcement . | . . . Assault . | . . . Garrison . | . . . Intercept . | . . . Construction Impeded . | . . . Haulers Reinforced . | . . . Stealth | -11 -10 -9 --------- Run | Scr Mat Mat Distress Signals 1 | . . 1 Communications Jammed . | . . . Distress Signals . | . . . Times Spotted 23 | . 7 16 Peak Tracking Total 4 | . 4 3 Tactical Retreats 3 | . . 3 Traps | -11 -10 -9 ------- Run | Scr Mat Mat Traps Triggered . | . . . Indirectly . | . . . Trap Hack Attempts . | . . . Triggered . | . . . Disarmed . | . . . Reprogrammed . | . . . Reused . | . . . Traps Extracted . | . . . Installed . | . . . Triggered . | . . . Machines | -11 -10 -9 ---------- Run | Scr Mat Mat Machines Disabled 1 | . . 1 Max in Single Turn 1 | . . 1 Machines Sabotaged . | . . . Garrisons Compromised . | . . . Overloaded Fab Kills . | . . . Fab Network Shutdowns . | . . . Hacking | -11 -10 -9 --------- Run | Scr Mat Mat Machines Accessed 5 | . 1 4 Terminals 4 | . 1 3 Fabricators . | . . . Repair Stations . | . . . Recycling Units . | . . . Scanalyzers 1 | . . 1 Garrison Access . | . . . Total Hacks 9 | . 1 8 Successful 5 | . 1 4 Failed 4 | . . 4 Catastrophic 1 | . . 1 Database Lockouts . | . . . Manual . | . . . Terminals 7 | . 1 6 Fabricators . | . . . Repair Stations . | . . . Recycling Units . | . . . Scanalyzers 2 | . . 2 Garrison Access . | . . . Terminal Hacks 3 | . 1 2 Record 2 | . . 2 Locate Traps 1 | . 1 . Fabricator Hacks . | . . . Repair Station Hacks . | . . . Recycling Unit Hacks . | . . . Scanalyzer 2 | . . 2 Insert Component 1 | . . 1 Analyze 1 | . . 1 Garrison Access Hacks . | . . . Unauthorized Hacks . | . . . Terminals . | . . . Fabricators . | . . . Repair Stations . | . . . Recycling Units . | . . . Scanalyzers . | . . . Garrison Access . | . . . Data Cores Recovered . | . . . Used . | . . . Hacking Detections 3 | . . 3 Full Trace Events 1 | . . 1 Feedback Events . | . . . Feedback Blocked . | . . . Robot Schematics Acquired . | . . . Robots Built . | . . . Matter . | . . . Time . | . . . Total Robot Build Rating . | . . . Part Schematics Acquired 1 | . . 1 Parts Built . | . . . Matter . | . . . Time . | . . . Total Part Build Rating . | . . . Parts Repaired . | . . . Time . | . . . Parts Recycled . | . . . Recycled Matter . | . . . Retrieved Matter . | . . . Retrieved Components . | . . . Parts Scanalyzed 1 | . . 1 Part Schematics Acquired 1 | . . 1 Parts Damaged . | . . . Bothacking | -11 -10 -9 ------------ Run | Scr Mat Mat Used RIF Installer . | . . . Robots Hacked . | . . . Non-combat . | . . . Combat . | . . . Robot Hacks Applied . | . . . Relay Couplers Released . | . . . Robots Rewired . | . . . Allies Hacked . | . . . Hacks Repelled . | . . . Allies | -11 -10 -9 -------- Run | Scr Mat Mat Total Allies . | . . . Largest Group . | . . . Highest-Rated Group . | . . . Highest-Rated Ally . | . . . Total Orders . | . . . Ally Attacks . | . . . Total Damage . | . . . Kills . | . . . Allies Corrupted . | . . . Allies Melted . | . . . Intel | -11 -10 -9 ------- Run | Scr Mat Mat Robot Analysis Total . | . . . Derelict Logs Recovered . | . . . Drone Launches . | . . . Drone Recoveries . | . . . Exploration | -11 -10 -9 ------------- Run | Scr Mat Mat Turns Passed 1041 | 139 397 505 Spaces Moved 675 | 93 277 305 Core 7 | 7 . . Treads . | . . . Legs 668 | 86 277 305 Wheels . | . . . Hover . | . . . Flight . | . . . Fastest Speed 50 | 50 120 120 Average Speed 119 | 115 120 120 Slowest Speed 120 | 120 120 120 Overloaded Moves . | . . . Propulsion Burnouts . | . . . Robots Hopped . | . . . Cave-ins Triggered . | . . . Exploration Rate (%) 32 | 6 49 43 Regions Visited 2 Branch Regions . Pre-discovered Areas . | . . . Known Exits Taken . | . . . Unknown Exits Taken 2 | 1 1 . Scrap Searched . | . . . Spaces Dug . | . . . Terrain Destroyed 23 | . 23 . Melee . | . . . Projectile . | . . . AOE 23 | . 23 . Actions | -11 -10 -9 --------- Run | Scr Mat Mat Total 826 | 107 307 412 Wait 76 | . . 76 Move 673 | 92 276 305 Hop . | . . . Pick Up 3 | 1 1 1 Fast Attach 14 | 7 2 5 Attach . | . . . Detach 1 | . . 1 Swap 5 | . 3 2 Drop 6 | . 2 4 Fire 44 | 7 19 18 Melee . | . . . Ram . | . . . Kick . | . . . Crush . | . . . Escape Stasis . | . . . Rewire . | . . . Trap . | . . . Miscellaneous 4 | . 4 . Route ------- -11/Scrapyard -10/Materials (discovered 3 exits: *Mat x2 / [*Min]) -9/Materials (discovered 1 exit: [*Min]) History --------- Turn | Location | Event 13 | -11/Scrapyard | Upgraded with Propulsion slot (x1) 13 | -11/Scrapyard | Upgraded with Utility slot (x2) 13 | -11/Scrapyard | Upgraded with Weapon slot (x1) 17 | -11/Scrapyard | Discovered new exit (range 16) 140 | -11/Scrapyard | Entered Materials 146 | -10/Materials | Discovered new exit (range 16) 301 | -10/Materials | Build established: Mutant 336 | -10/Materials | Discovered new exit (range 3) 518 | -10/Materials | Discovered new exit (range 15) 537 | -10/Materials | Entered another Materials area 539 | -9/Materials | Reached level 2 718 | -9/Materials | Discovered new exit (range 17) 775 | -9/Materials | Upgraded with Utility slot (x1) 858 | -9/Materials | Core integrity fell below 50% 1042 | -9/Materials | Self-destructed Last Messages --------------- 00767_ K-01 Serf cleans the Machine. 00775_ Upgraded: Utility Slot (+1) 00778_ Acquired Hrd. Light Armor Plating. 00784_ K-01 Serf collects debris. 00823_ Connecting with Terminal... 00823_ ALERT: Suspicious activity at Terminal M010. Dispatching Investigation squad. 00839_ O-16 Technician: "IFF HANDSHAKE FAILED. SECURING TERMINAL." 00841_ Connecting with Terminal... >>Query(Traps) [Complex 0b10]'s rapid expansion has left defensive assets stretched thin in many areas. To temporarily address the growing threat of a larger [Derelict] incursion, a number of traps are being engineered and deployed as a more efficient way to hinder enemy advances and buy the time necessary to mobilize a garrisoned response force. Because traps are installed in areas regularly traveled by even non-combat robots, their sensitivity is set well below their maximum potential to avoid disruptions that could result from a damaged robot accidentally triggering one. 00861_ T-07 Excavator is excavating. 00973_ K-01 Serf cleans the Atomic Centrifuge. Map ----- +----------------------------------------------------+ | # # """ #????? ???????????? | | # # """ ##????????????????? | | # # """ # ????????? ?????? | | # + #????? ??????????? | | # # +???????????? ??? | | # ### #???????#?????#??? | | # #?# ##########????#??? | | # #?# #???????? | | # #?# #???????? | | # |#?# """"""" ?????? | | ########?# """""""??????????? | | ?????#???# """"""" ######??? | | ?????????# ### """"""" ?? | | #????????# #?# """"""" ? | | ???#?????# #?# """???? | | ???####### #?# ""T???? | | ???# ### ##### ? | | ####+#######?# #?????? ?? | | # #???## ##???????? ????? | | # ##???#k #??????????????? | | # ! ######/##+#??????????????? | | # ## #??????????????? | | ########## #??????????????? | | ?#?# # ! #??????????????? | | ???# #k """ #????? ????????? | | ???# Y @ """"" #??????????????? | | ???# # """"" #??????????????? | | ???# # """"" #??????????????? | | ??### ?# """ ]#??????????????? | | ????# ?#! #??????????????? | | ????# ??##########??????????????? | | ????# ??????????????????????????? | | ????# ???????#???????????????????? | | ????# ???????????????????????????? | | ????#????????????????????????????? | | ?????????????????????????????????? | | ?????????????????????????????????? | | ?????????????????????????????????? | | ?????????????????????????????????? | | ?????????????????????????????????? | | ?????????????????????????????????? | | ?????????????????????????????????? | | ?????????????????????????????????? | | ?????????????????????????????????? | | ?????????????????????????????????? | | ?????????????????????????????????? | | ?????????????????????????????????? | | ?????????????????????????????????? | | ?????????????????????????????????? | | ?????????????????????????????????? | +----------------------------------------------------+ Best States ------------- Heat Dissipation 35 Energy Generation 10 Energy Capacity 250 Matter Stores 300 Matter Capacity 300 Sight Range 18 Terrain Scan Range 16 Terrain Scan Density 60 Armor Coverage 150 Evasion (%) 40 Armor Integrity Analysis 33 Item Schematics ----------------- Grenade Launcher | -9/Materials | Scanalyzed Robot Schematics ------------------ None Fabricated ------------ Nothing Alien Tech Used ----------------- None Achievements -------------- None Challenges ------------ None RPGLIKE | -11 -10 -9 --------- Run | Scr Mat Mat Levels Raised 1 | . . 1 XP Earned 5510 | 3000 550 1960 XP Spent 4150 | 2550 . 1600 Upgrades 7 | 5 . 2 Propulsion Slot 1 | 1 . . Utility Slot 3 | 2 . 1 Weapon Slot 1 | 1 . . Inventory Capacity 2 | 1 . 1 Protomatter Created 59 | . 32 27 Integrity Restored 96 | . 96 . Core 96 | . 96 . Protomatter Decayed . | . . . Game ------ Seed DamperZioniteMegatreads Manual? 0 Play Time 00:29:19 Cumulative 0.9 hours Start 2020.01.04 @ 08:58:30 End 2020.01.10 @ 12:24:29 Sessions 13 Manual Loads 0 Difficulty Rogue Special Mode Winter2019/RPGLIKE Game No. 3 Rogue 3 Adventurer 0 Explorer 0 Win Type - Total 0 Types 0/0/0/0/0/0/0 Lore% 1 Gallery% 3 Achievement% 21 Wizard Run 0 Options --------- ASCII 0 Keyboard 0 Movement Mouse Keybinds 0 Fullscreen 1 Font 14/Dina Map View 84x54 Tactical HUD 1 Map Filters NONE Filters NONE Steam 1 RUN: 16a24e19-9783-471e-b408-7284cbfd6e2e